bitfinex-derivatives/quotes_SOLF0:USTF0_20250914
["timestamp","ask_amount","ask_price","bid_price","bid_amount"]
[1757823872454,105.26,246.26,246.15,6.77]
[1757823872748,273.1,246.3,246.15,6.77]
[1757823872954,105.24,246.25,246.15,6.77]
[1757823874853,105.22,246.25,246.15,6.77]
[1757823877056,105.2,246.29,246.15,6.77]
[1757823877252,106.50624112,246.29,246.15,6.77]
[1757823879163,105.2,246.29,246.15,6.77]
[1757823879752,273.1,246.3,246.15,6.77]
[1757823879951,105.18,246.29,246.18,7.04]
[1757823883559,105.12,246.37,246.21,7.04]
[1757823883852,272.9,246.44,246.15,52.16]
[1757823883853,272.9,246.57,246.36,1.30624112]
[1757823884055,1.30624112,246.53,246.36,1.30624112]
[1757823884358,272.9,246.57,246.36,1.30624112]
[1757823884359,57.82,246.52,246.37,7.04]
[1757823885151,57.82,246.52,246.39,1.30624112]
[1757823885551,57.82,246.52,246.37,7.04]
[1757823885748,272.9,246.57,246.37,7.04]
[1757823885952,1.30624112,246.62,246.42,7.04]
[1757823886151,105.1,246.61,246.42,7.04]
[1757823886355,105.1,246.61,246.42,8.34624112]
[1757823886657,1.30624112,246.58,246.42,8.34624112]
[1757823891452,1.30624112,246.58,246.36,1.30624112]
[1757823891453,1.30624112,246.63,246.47,7.04]
[1757823891654,1.30624112,246.64,246.47,7.04]
[1757823892661,60.94624112,246.69,246.51,6.94]
[1757823892861,59.64,246.69,246.51,6.94]
[1757823893556,1.30624112,246.66,246.51,6.94]
[1757823893753,1.30624112,246.66,246.46,8.24624112]
[1757823894156,71.82,246.69,246.46,8.24624112]
[1757823894157,1.30624112,246.62,246.46,8.24624112]
[1757823894959,71.82,246.69,246.46,8.24624112]
[1757823895262,1.30624112,246.62,246.46,6.94]
[1757823896354,1.30624112,246.7,246.39,10.52]
[1757823896355,12.18,246.7,246.49,6.94]
[1757823896560,1.30624112,246.67,246.49,6.94]
[1757823896959,13.48624112,246.68,246.49,6.94]
[1757823897562,1.30624112,246.64,246.49,6.94]
[1757823900562,1.30624112,246.63,246.49,6.94]
[1757823902057,1.30624112,246.65,246.49,6.94]
[1757823902862,12.18,246.68,246.49,6.94]
[1757823902863,1.30624112,246.68,246.49,6.94]
[1757823903063,1.30624112,246.68,246.51,1.30624112]
[1757823903363,1.30624112,246.68,246.52,6.51]
[1757823903558,1.30624112,246.77,246.57,6.51]
[1757823903755,1.30624112,246.77,246.61,6.51]
[1757823903756,13.5070393,246.77,246.61,6.51]
[1757823903956,1.30624112,246.77,246.61,6.51]
[1757823905459,12.18,246.78,246.61,6.51]
[1757823905661,104.84,246.79,246.61,6.51]
[1757823907265,104.84,246.79,246.64,6.51]
[1757823909966,305.30173201,246.88,246.48,1.30624112]
[1757823909967,389.36350027,246.88,246.68,6.51]
[1757823910267,1.30624112,246.87,246.68,6.51]
[1757823910468,1.30624112,246.83,246.68,6.51]
[1757823911165,362.88094285,246.86,246.68,6.51]
[1757823911365,1.30624112,246.84,246.68,6.51]
[1757823911668,1.30624112,246.83,246.68,6.51]
[1757823912666,1.30624112,246.79,246.68,6.51]
[1757823912866,1.30624112,246.78,246.68,6.51]
[1757823914471,116.92,246.79,246.6,6.51]
[1757823914773,1.30624112,246.73,246.6,6.51]
[1757823915367,116.92,246.79,246.6,6.51]
[1757823915568,1.30624112,246.7,246.6,6.51]
[1757823915768,19.66624112,246.7,246.6,6.51]
[1757823916072,19.66624112,246.7,246.51,6.51]
[1757823916273,1.30624112,246.66,246.51,6.51]
[1757823916475,1.30624112,246.68,246.51,6.51]
[1757823917067,11.04,246.69,246.54,6.51]
[1757823917273,10.48,246.7,246.54,6.51]
[1757823918076,1.30624112,246.69,246.54,6.51]
[1757823918573,1.30624112,246.65,246.54,6.51]
[1757823919675,1.30624112,246.84,246.54,6.51]
[1757823919876,1.30624112,246.68,246.54,6.51]
[1757823920273,1.24,246.7,246.54,6.51]
[1757823920474,1.30624112,246.69,246.54,6.51]
[1757823921270,1.30624112,246.69,246.54,7.81624112]
[1757823921668,1.30624112,246.69,246.54,6.51]
[1757823922976,2.36,246.7,246.54,6.51]
[1757823923177,1.30624112,246.84,246.54,6.51]
[1757823923477,1.30624112,246.71,246.54,6.51]
[1757823923679,104.66,246.7,246.54,6.51]
[1757823923978,12.18,246.82,246.61,1.30624112]
[1757823924184,1.30624112,246.79,246.62,6.51]
[1757823924479,104.66,246.78,246.62,6.51]
[1757823925269,12.18,246.85,246.62,6.51]
[1757823925474,1.30624112,246.81,246.62,6.51]
[1757823926579,104.66,246.8,246.62,6.51]
[1757823926879,104.66,246.79,246.62,6.51]
[1757823927083,1.30624112,246.81,246.62,6.51]
[1757823927277,94.32,246.8,246.66,6.51]
[1757823928174,1.30624112,246.81,246.66,6.51]
[1757823928477,350.70094285,246.86,246.7,7.0]
[1757823929175,350.70094285,246.86,246.7,8.30624112]
[1757823930377,350.70094285,246.86,246.77,0.83185602]
[1757823930578,350.70094285,246.86,246.75,0.83185602]
[1757823930780,351.53279887,246.86,246.75,0.83185602]
[1757823930983,104.62,246.85,246.75,0.83185602]
[1757823931885,0.83185602,246.83,246.71,0.83185602]
[1757823932177,350.70094285,246.86,246.7,7.0]
[1757823932383,350.70094285,246.86,246.74,0.83185602]
[1757823932384,104.62,246.82,246.74,0.83185602]
[1757823932777,0.83185602,246.84,246.74,0.83185602]
[1757823933081,31.77689021,246.98,246.77,0.83185602]
[1757823933282,0.83185602,246.89,246.78,6.75]
[1757823933585,104.6,246.88,246.8,0.83185602]
[1757823933885,12.18,246.94,246.8,0.83185602]
[1757823934086,105.43185602,246.92,246.8,0.83185602]
[1757823934286,105.43185602,246.92,246.79,0.83185602]
[1757823935080,104.6,246.92,246.79,0.83185602]
[1757823935283,0.83185602,246.9,246.79,0.83185602]
[1757823935483,0.83185602,246.89,246.79,0.83185602]
[1757823936181,0.83185602,246.86,246.76,6.75]
[1757823936385,0.83185602,246.79,246.69,3.34924599]
[1757823936582,0.83185602,246.8,246.7,6.75]
[1757823936886,0.83185602,246.81,246.7,6.75]
[1757823937085,0.83185602,246.8,246.7,6.75]
[1757823937287,104.58,246.86,246.7,6.75]
[1757823937486,0.83185602,246.79,246.7,6.75]
[1757823938085,0.83185602,246.83,246.72,0.83185602]
[1757823938281,0.83185602,246.84,246.73,6.75]
[1757823938676,0.83185602,246.84,246.75,6.75]
[1757823938982,0.83185602,246.81,246.75,6.75]
[1757823939183,104.56,246.88,246.75,6.75]
[1757823939384,0.83185602,246.81,246.75,6.75]
[1757823941984,284.58,246.93,246.75,6.75]
[1757823942189,104.54,246.92,246.75,6.75]
[1757823942389,0.83185602,246.84,246.75,6.75]
[1757823943589,0.83185602,246.86,246.75,6.75]
[1757823943890,0.83185602,246.86,246.76,0.83185602]
[1757823944085,0.83185602,246.86,246.75,6.75]
[1757823944291,0.83185602,246.86,246.75,7.58185602]
[1757823945391,0.83185602,246.86,246.75,6.75]
[1757823945590,0.83185602,246.86,246.75,7.58185602]
[1757823947991,272.4,246.93,246.79,6.75]
[1757823948190,0.83185602,246.91,246.82,6.75]
[1757823951694,104.52,246.97,246.82,6.75]
[1757823951895,0.83185602,246.92,246.82,6.75]
[1757823954996,104.52,246.97,246.82,6.75]
[1757823954997,0.83185602,246.88,246.82,6.75]
[1757823955200,0.83185602,246.88,246.78,6.94]
[1757823957398,12.18,246.96,246.78,6.94]
[1757823957599,0.83185602,246.89,246.78,6.94]
[1757823962105,0.83185602,246.89,246.78,7.77185602]
[1757823962810,0.83185602,246.9,246.78,7.77185602]
[1757823963406,0.83185602,246.9,246.78,6.94]
[1757823963703,0.83185602,246.9,246.8,0.83185602]
[1757823964308,12.18,246.96,246.81,6.5]
[1757823964510,0.83185602,246.93,246.81,6.5]
[1757823967608,0.83185602,246.93,246.8,0.83185602]
[1757823967609,0.83185602,246.95,246.87,6.5]
[1757823967810,105.35185602,246.97,246.86,0.83185602]
[1757823968008,0.83185602,246.94,246.83,7.33185602]
[1757823968619,0.83185602,246.93,246.83,7.33185602]
[1757823970509,0.83185602,246.93,246.83,6.5]
[1757823970710,0.83185602,246.93,246.8,0.83185602]
[1757823970918,0.83185602,246.93,246.81,6.5]
[1757823971218,0.70506002,246.96,246.81,6.5]
[1757823971418,0.83185602,246.94,246.82,0.83185602]
[1757823972618,0.70506002,246.96,246.82,0.83185602]
[1757823972819,0.83185602,246.93,246.82,0.83185602]
[1757823974720,0.83185602,246.93,246.81,6.5]
[1757823975721,0.83185602,246.93,246.81,7.33185602]
[1757823976421,0.83185602,246.93,246.82,0.83185602]
[1757823977220,0.83185602,246.9,246.81,6.5]
[1757823977922,12.18,246.95,246.81,6.5]
[1757823978124,0.83185602,246.91,246.81,6.5]
[1757823978721,153.99935598,246.98,246.91,6.5]
[1757823978925,4.42096921,247.11,246.96,6.5]
[1757823979127,6.63,247.12,247.03,0.83185602]
[1757823979823,0.83185602,247.11,247.02,6.5]
[1757823980224,12.77323017,247.11,247.02,6.5]
[1757823980419,24.95323017,247.11,247.02,6.5]
[1757823980623,24.12137415,247.11,247.02,6.5]
[1757823981026,6.63,247.08,246.97,0.83185602]
[1757823981216,104.36,247.07,246.97,0.83185602]
[1757823981624,7.46185602,247.06,246.96,6.5]
[1757823981823,19.64185602,247.06,246.96,6.5]
[1757823984730,18.81,247.02,246.91,0.83185602]
[1757823985519,6.63,247.02,246.91,0.83185602]
[1757823985826,6.63,247.02,246.9,6.5]
[1757823986130,6.63,247.02,246.92,0.83185602]
[1757823986325,18.81,247.02,246.91,0.83185602]
[1757823988422,0.83185602,247.0,246.9,6.5]
[1757823990430,0.83185602,247.0,246.91,0.83185602]
[1757823990829,0.83185602,247.0,246.92,6.7]
[1757823991034,64.14,247.03,246.92,6.7]
[1757823992030,64.14,247.03,246.93,0.83185602]
[1757823992330,64.14,247.03,246.92,6.7]
[1757823992331,64.14,247.03,246.94,6.7]
[1757823993332,6.76,247.02,246.94,6.7]
[1757823994332,6.76,247.07,246.94,7.99788521]
[1757823994625,6.76,247.12,246.99,6.7]
[1757823995327,8.05788521,247.12,246.99,6.7]
[1757823995534,20.23788521,247.12,246.99,6.7]
[1757823996136,32.40684085,247.12,246.99,6.7]
[1757823996728,8.05788521,247.08,246.99,6.7]
[1757823997328,6.76,247.08,246.99,6.7]
[1757823997529,8.05788521,247.08,246.99,6.7]
[1757824000942,1.29788521,247.08,246.99,6.7]
[1757824001139,8.05788521,247.12,246.99,6.7]
[1757824001741,4.42096921,247.29,246.99,10.09520487]
[1757824001935,1.29788521,247.22,247.06,6.7]
[1757824002140,278.94,247.23,247.06,6.7]
[1757824002341,280.23788521,247.23,247.06,6.7]
[1757824003043,278.94,247.23,247.06,6.7]
[1757824003239,1.29788521,247.22,247.06,6.7]
[1757824003642,1.29788521,247.22,247.08,6.7]
[1757824004340,278.94,247.23,247.08,6.7]
[1757824004935,104.22,247.24,247.11,1.29788521]
[1757824005141,104.22,247.24,247.12,6.7]
[1757824007048,105.51788521,247.24,247.12,6.7]
[1757824008944,104.22,247.24,247.12,6.7]
[1757824010246,6.76,247.23,247.12,6.7]
[1757824011354,1.29788521,247.22,247.12,6.7]
[1757824011951,6.76,247.23,247.12,6.7]
[1757824012547,105.51788521,247.24,247.12,6.7]
[1757824013452,104.22,247.24,247.12,7.99788521]
[1757824014659,104.22,247.24,247.12,6.7]
[1757824014858,104.22,247.24,247.13,1.29788521]
[1757824015062,104.22,247.24,247.14,6.86]
[1757824016262,6.44,247.27,247.14,6.86]
[1757824020765,1.29788521,247.3,247.14,6.86]
[1757824021163,1.29788521,247.3,247.11,9.28]
[1757824021164,1.29788521,247.3,247.17,6.64]
[1757824021360,6.59,247.31,247.17,6.64]
[1757824021760,6.59,247.31,247.17,37.64]
[1757824021963,6.59,247.31,247.18,6.64]
[1757824022960,6.59,247.31,247.18,7.93788521]
[1757824023161,6.59,247.36,247.18,7.93788521]
[1757824023356,7.88788521,247.36,247.18,7.93788521]
[1757824023557,7.88788521,247.36,247.2,6.64]
[1757824024362,7.88788521,247.36,247.2,39.5]
[1757824024568,7.88788521,247.36,247.21,6.64]
[1757824025067,6.59,247.36,247.21,6.64]
[1757824025767,6.59,247.36,247.22,6.64]
[1757824026868,6.59,247.36,247.22,44.84]
[1757824027069,6.59,247.36,247.23,6.64]
[1757824030268,6.59,247.36,247.23,13.76]
[1757824030670,6.59,247.36,247.23,6.64]
[1757824031070,7.88788521,247.36,247.23,6.64]
[1757824031769,1.29788521,247.32,247.23,6.64]
[1757824031973,6.59,247.31,247.17,7.72]
[1757824032369,6.59,247.31,247.16,6.64]
[1757824032574,7.88788521,247.31,247.18,6.64]
[1757824034969,6.59,247.26,247.1,6.64]
[1757824035173,1.29788521,247.23,247.11,6.64]
[1757824035363,1.29788521,247.32,247.11,6.64]
[1757824035364,0.70395469,247.38,247.13,1.29788521]
[1757824035568,6.59,247.37,247.22,1.29788521]
[1757824035774,7.88788521,247.42,247.27,6.64]
[1757824036076,6.59,247.42,247.27,6.64]
[1757824036467,6.59,247.42,247.29,6.64]
[1757824036672,1.29788521,247.4,247.29,6.64]
[1757824037267,6.59,247.39,247.29,6.64]
[1757824037977,6.59,247.39,247.22,1.29788521]
[1757824037978,6.59,247.35,247.22,6.64]
[1757824038478,1.29788521,247.32,247.22,6.64]
[1757824039580,7.88788521,247.32,247.22,6.64]
[1757824039980,6.59,247.32,247.22,6.64]
[1757824040177,7.88788521,247.37,247.22,6.64]
[1757824040580,6.59,247.45,247.25,6.64]
[1757824040881,1.29788521,247.44,247.27,6.64]
[1757824042380,6.59,247.43,247.27,23.12]
[1757824042970,6.59,247.43,247.27,6.64]
[1757824043381,1.29788521,247.42,247.27,6.64]
[1757824043675,6.59,247.41,247.27,6.64]
[1757824046377,89.42353176,247.41,247.23,6.64]
[1757824046585,6.59,247.4,247.23,6.64]
[1757824049583,6.71,247.38,247.19,9.92520487]
[1757824049784,6.71,247.37,247.2,3.39520487]
[1757824051382,6.71,247.37,247.21,3.39520487]
[1757824051783,6.71,247.37,247.2,3.39520487]
[1757824052186,6.71,247.37,247.21,3.39520487]
[1757824052385,6.71,247.37,247.2,3.39520487]
[1757824052684,6.71,247.37,247.21,3.39520487]
[1757824052985,6.71,247.37,247.19,6.53]
[1757824053182,6.71,247.33,247.19,6.53]
[1757824053576,6.71,247.33,247.17,3.39520487]
[1757824053782,6.71,247.33,247.16,3.39520487]
[1757824054689,6.71,247.33,247.15,3.39520487]
[1757824054884,6.71,247.25,247.12,3.39520487]
[1757824055089,6.71,247.25,247.1,6.53]
[1757824055090,6.71,247.25,247.11,3.39520487]
[1757824055683,6.71,247.25,247.1,9.92520487]
[1757824055891,6.71,247.25,247.1,6.53]
[1757824056891,2.15794536,247.26,247.1,9.92520487]
[1757824057887,6.71,247.25,247.1,9.92520487]
[1757824058087,2.15794536,247.26,247.1,9.92520487]
[1757824058288,6.71,247.25,247.1,9.92520487]
[1757824058483,2.15794536,247.26,247.1,9.92520487]
[1757824058679,6.71,247.25,247.1,9.92520487]
[1757824059184,6.71,247.25,247.11,3.39520487]
[1757824059586,2.15794536,247.26,247.1,9.92520487]
[1757824060386,6.71,247.2,247.1,6.53]
[1757824061688,6.71,247.2,247.06,3.39520487]
[1757824062388,6.71,247.2,247.05,9.92520487]
[1757824063089,6.71,247.2,247.05,6.53]
[1757824063387,2.15794536,247.15,247.05,6.53]
[1757824063584,6.71,247.14,247.01,3.39520487]
[1757824063888,6.71,247.14,247.0,6.53]
[1757824063889,8.86794536,247.1,247.0,6.53]
[1757824064288,2.15794536,247.05,246.96,3.39520487]
[1757824064484,52.97,247.04,246.89,3.39520487]
[1757824064683,52.97,247.04,246.79,2.15794536]
[1757824064684,52.97,247.04,246.9,6.53]
[1757824064889,2.15794536,246.99,246.9,6.53]
[1757824066684,6.71,247.0,246.9,6.53]
[1757824067081,2.15794536,246.96,246.81,6.53]
[1757824067292,8.86794536,246.96,246.81,6.53]
[1757824067886,2.15794536,246.91,246.81,6.53]
[1757824069293,6.71,246.9,246.7,6.53]
[1757824069494,105.99794536,246.89,246.7,6.53]
[1757824071592,6.71,246.88,246.7,6.53]
[1757824071794,103.86,246.87,246.7,6.53]
[1757824072494,103.86,246.86,246.7,6.53]
[1757824073090,6.71,246.88,246.7,6.53]
[1757824073396,2.15794536,246.93,246.7,6.53]
[1757824073796,2.15794536,246.93,246.72,6.93]
[1757824075595,6.98,246.92,246.72,6.93]
[1757824075795,71.72,246.91,246.72,6.93]
[1757824076192,6.98,246.92,246.72,6.93]
[1757824076499,63.86,246.91,246.72,6.93]
[1757824076997,6.98,246.9,246.72,6.93]
[1757824077199,2.15794536,246.88,246.72,6.93]
[1757824077397,71.82,246.95,246.75,6.93]
[1757824077592,6.98,246.95,246.75,6.93]
[1757824077995,153.99813762,246.98,246.75,6.93]
[1757824078196,153.99813762,246.98,246.8,6.88]
[1757824078589,6.5,247.0,246.8,6.88]
[1757824078590,110.4,247.0,246.8,6.88]
[1757824079899,6.5,247.0,246.8,6.88]
[1757824080301,2.15794536,247.03,246.8,6.88]
[1757824081500,6.5,247.05,246.85,6.88]
[1757824081698,6.5,247.11,246.89,2.15794536]
[1757824081904,106.05794536,247.2,246.91,6.88]
[1757824082101,6.5,247.19,246.94,2.15794536]
[1757824082300,6.5,247.19,246.95,6.88]
[1757824082500,6.5,247.19,246.97,6.88]
[1757824084801,6.5,247.19,246.99,9.03794536]
[1757824085001,6.5,247.19,247.0,6.88]
[1757824085207,6.5,247.19,247.01,62.78]
[1757824085403,6.5,247.19,247.02,6.88]
[1757824085810,6.5,247.19,247.04,6.88]
[1757824086209,6.5,247.19,247.05,65.3]
[1757824086413,6.5,247.19,247.06,6.88]
[1757824088514,6.5,247.19,247.06,18.06]
[1757824088708,6.5,247.19,247.06,28.68]
[1757824089306,272.06,247.27,247.07,6.88]
[1757824089307,8.65794536,247.27,247.07,6.88]
[1757824089611,6.5,247.27,247.07,6.88]
[1757824089806,6.5,247.27,247.09,2.15794536]
[1757824090007,6.5,247.27,247.1,6.88]
[1757824091410,6.5,247.27,247.12,6.88]
[1757824091816,6.5,247.27,247.14,6.88]
[1757824092216,6.5,247.27,247.15,103.82]
[1757824092720,6.5,247.27,247.14,6.88]
[1757824092921,6.5,247.27,247.15,103.8]
[1757824094516,6.5,247.27,247.16,6.88]
[1757824094722,6.5,247.27,247.16,110.68]
[1757824095121,6.5,247.27,247.16,6.88]
[1757824098719,2.15794536,247.23,247.06,6.88]
[1757824098920,6.5,247.27,247.08,6.88]
[1757824099625,6.5,247.27,247.09,6.88]
[1757824102224,6.5,247.27,247.12,2.15794536]
[1757824102422,6.5,247.27,247.13,6.88]
[1757824104829,6.5,247.27,247.14,41.72]
[1757824105322,6.5,247.27,247.15,60.68]
[1757824106328,6.5,247.27,247.13,6.88]
[1757824106622,6.5,247.27,247.14,99.04]
[1757824106830,6.5,247.27,247.16,6.88]
[1757824108427,6.5,247.27,247.16,61.66]
[1757824108628,6.5,247.27,247.16,110.6]
[1757824109133,6.5,247.27,247.16,6.88]
[1757824110434,6.5,247.27,247.16,110.58]
[1757824111028,6.5,247.27,247.16,6.88]
[1757824111434,6.5,247.27,247.16,61.58]
[1757824112134,6.5,247.27,247.16,6.88]
[1757824112335,6.5,247.27,247.17,103.7]
[1757824112635,6.5,247.27,247.16,6.88]
[1757824112835,6.5,247.27,247.17,103.7]
[1757824113032,6.5,247.27,247.16,6.88]
[1757824113227,6.5,247.27,247.16,52.2]
[1757824113427,6.5,247.27,247.16,104.04]
[1757824114034,6.5,247.27,247.17,103.68]
[1757824114235,6.5,247.27,247.16,6.88]
[1757824114734,6.5,247.27,247.17,58.36]
[1757824114933,6.5,247.27,247.16,6.88]
[1757824115132,6.5,247.27,247.17,59.28]
[1757824115332,6.5,247.27,247.17,103.68]
[1757824117237,6.5,247.27,247.17,103.66]
[1757824117436,6.5,247.27,247.16,6.88]
[1757824118337,6.5,247.27,247.16,55.34]
[1757824118837,6.5,247.27,247.17,95.12]
[1757824119240,6.5,247.27,247.17,103.66]
[1757824119735,6.5,247.27,247.16,6.88]
[1757824120037,6.5,247.27,247.17,103.66]
[1757824120639,6.5,247.27,247.17,103.64]
[1757824121436,6.5,247.27,247.16,110.52]
[1757824121740,6.5,247.27,247.16,6.88]
[1757824121936,6.5,247.27,247.16,110.52]
[1757824123040,6.5,247.27,247.16,6.88]
[1757824123236,6.5,247.27,247.16,110.52]
[1757824123638,6.5,247.27,247.16,6.88]
[1757824124741,6.5,247.27,247.16,10.22398368]
[1757824126244,6.5,247.27,247.17,3.34398368]
[1757824127343,6.5,247.27,247.18,3.34398368]
[1757824129346,6.5,247.27,247.19,3.34398368]
[1757824129547,6.5,247.27,247.18,3.34398368]
[1757824129948,6.5,247.27,247.19,3.34398368]
[1757824130148,6.5,247.27,247.18,3.34398368]
[1757824130349,6.5,247.27,247.19,3.34398368]
[1757824130650,6.5,247.27,247.19,10.06398368]
[1757824131253,6.5,247.27,247.2,3.34398368]
[1757824131453,6.5,247.27,247.22,3.34398368]
[1757824131654,6.5,247.27,247.22,9.75398368]
[1757824131849,6.78,247.32,247.22,9.75398368]
[1757824132049,1.29518557,247.34,247.22,9.75398368]
[1757824132247,6.78,247.33,247.24,6.41]
[1757824132446,6.78,247.38,247.27,3.34398368]
[1757824133051,6.78,247.38,247.29,3.34398368]
[1757824133751,6.78,247.38,247.28,3.34398368]
[1757824134655,6.78,247.36,247.28,3.34398368]
[1757824135349,6.78,247.36,247.26,3.34398368]
[1757824135548,6.78,247.36,247.25,3.34398368]
[1757824135745,6.78,247.33,247.25,3.34398368]
[1757824136252,6.78,247.33,247.24,3.34398368]
[1757824139950,110.3,247.33,247.24,3.34398368]
[1757824140449,103.52,247.32,247.24,3.34398368]
[1757824140652,6.78,247.33,247.24,3.34398368]
[1757824141053,6.78,247.33,247.24,9.71398368]
[1757824141859,6.78,247.33,247.25,3.34398368]
[1757824144064,6.78,247.33,247.27,3.34398368]
[1757824144453,6.78,247.33,247.26,3.34398368]
[1757824145162,6.78,247.33,247.25,3.34398368]
[1757824145662,6.78,247.33,247.24,3.34398368]
[1757824146360,6.78,247.33,247.26,3.34398368]
[1757824146562,6.78,247.33,247.27,3.34398368]
[1757824147264,6.78,247.33,247.26,3.34398368]
[1757824147558,6.78,247.33,247.27,3.34398368]
[1757824154070,110.22,247.33,247.27,3.34398368]
[1757824156866,110.22,247.33,247.26,3.34398368]
[1757824157068,110.22,247.33,247.25,3.34398368]
[1757824157468,6.78,247.33,247.25,3.34398368]
[1757824157669,6.51,247.32,247.24,3.34398368]
[1757824157873,73.39,247.32,247.25,3.34398368]
[1757824158274,73.39,247.32,247.24,3.34398368]
[1757824158570,6.51,247.32,247.24,3.34398368]
[1757824158773,7.80518557,247.29,247.25,3.34398368]
[1757824159275,7.80518557,247.29,247.25,9.71398368]
[1757824159475,6.51,247.28,247.24,3.34398368]
[1757824159977,6.51,247.28,247.25,9.71398368]
[1757824160173,6.51,247.38,247.26,6.37]
[1757824160378,1.29518557,247.35,247.26,9.71398368]
[1757824160675,1.29518557,247.35,247.28,3.34398368]
[1757824161472,7.80518557,247.35,247.28,3.34398368]
[1757824164781,7.80518557,247.35,247.27,3.34398368]
[1757824166582,103.32,247.34,247.27,3.34398368]
[1757824168282,1.29518557,247.31,247.27,3.34398368]
[1757824168583,7.95518557,247.31,247.27,10.15398368]
[1757824169186,1.29518557,247.31,247.28,6.81]
[1757824169679,6.66,247.35,247.28,6.81]
[1757824169980,6.66,247.35,247.14,31.27555758]
[1757824169981,1.29518557,247.29,247.21,6.72421267]
[1757824170279,1.29518557,247.24,247.14,6.81]
[1757824170479,1.29518557,247.24,247.15,6.81]
[1757824170687,1.01079198,247.23,247.15,6.81]
[1757824170878,1.29518557,247.24,247.15,6.81]
[1757824171075,1.01079198,247.23,247.15,6.81]
[1757824171781,0.28431205,247.24,247.16,1.01083275]
[1757824171980,2.42,247.26,247.18,6.81]
[1757824172175,1.29518557,247.25,247.19,1.01083275]
[1757824172480,3.71518557,247.25,247.2,7.82083275]
[1757824172784,3.71518557,247.25,247.2,6.81]
[1757824173482,1.29518557,247.25,247.2,6.81]
[1757824173781,2.42,247.24,247.11,6.81]
[1757824174181,2.42,247.24,247.11,13.53421267]
[1757824174379,0.82937961,247.21,247.12,6.81]
[1757824174982,0.82937961,247.18,247.12,6.81]
[1757824175985,0.82937961,247.15,247.12,6.81]
[1757824177675,0.82937961,247.15,247.02,6.81]
[1757824177882,0.82937961,247.11,247.02,6.81]
[1757824178275,2.42,247.17,246.94,8.80037201]
[1757824178276,2.42,247.27,247.03,0.82937961]
[1757824178483,0.82937961,247.2,247.07,6.81]
[1757824178886,0.82937961,247.23,247.1,6.81]
[1757824179286,0.82937961,247.2,247.1,6.81]
[1757824180184,0.82937961,247.17,247.1,6.81]
[1757824180991,0.82937961,247.14,247.05,6.81]
[1757824181183,2.42,247.2,247.05,6.81]
[1757824181383,0.82937961,247.18,247.05,7.63937961]
[1757824181587,0.82937961,247.15,247.05,6.81]
[1757824181784,0.82937961,247.12,247.05,6.81]
[1757824183890,0.82937961,247.13,247.05,6.81]
[1757824186690,0.82937961,247.11,247.05,6.81]
[1757824188694,2.42,247.17,247.05,6.81]
[1757824188888,0.82937961,247.14,247.05,6.81]
[1757824194198,0.82937961,247.11,247.05,6.81]
[1757824195997,0.82937961,247.08,247.05,6.81]
[1757824196697,0.82937961,247.08,246.97,6.82]